bitfinex/quotes_ETHUSD_20260203
["timestamp","ask_amount","ask_price","bid_price","bid_amount"]
[1770106724758,2.88498028,2320.6,2319.7,0.001]
[1770106725461,15.57521808,2320.6,2319.7,0.001]
[1770106729347,15.57521808,2320.6,2319.0,0.0008032]
[1770106729348,12.72906605,2320.1,2319.0,0.0008032]
[1770106729562,0.03882825,2320.3,2319.0,0.0008032]
[1770106729563,12.6902378,2319.9,2319.0,0.0008032]
[1770106729970,12.6902378,2319.9,2319.1,1.07800124]
[1770106730369,12.6902378,2319.9,2319.0,1.07882165]
[1770106730555,1.35932378,2319.8,2319.0,1.07882165]
[1770106730752,1.07772556,2319.7,2319.0,0.0008032]
[1770106731084,12.95206435,2319.7,2319.0,0.0008032]
[1770106732203,12.95206435,2319.7,2318.5,0.001]
[1770106732204,12.50747599,2319.5,2318.5,0.001]
[1770106732419,12.46864774,2319.3,2317.6,0.904]
[1770106732686,12.50747599,2318.5,2317.6,0.001]
[1770106732861,14.44997762,2318.4,2317.6,0.001]
[1770106733855,12.46864774,2317.9,2316.7,1.07908347]
[1770106734050,13.71551251,2317.8,2316.6,1.07913365]
[1770106734389,13.37164774,2317.7,2316.3,0.0008016]
[1770106734551,0.903,2317.6,2316.8,1.07904305]
[1770106735065,1.07869005,2317.7,2316.4,4.31690594]
[1770106735455,3.22849032,2317.8,2316.4,4.31690594]
[1770106735660,1.24686477,2317.8,2316.5,13.63163521]
[1770106735962,0.904,2318.1,2316.5,13.63163521]
[1770106736480,1.98247909,2318.1,2316.5,13.63163521]
[1770106737776,1.98247909,2318.1,2316.7,11.90176215]
[1770106739251,9.81049849,2318.7,2316.7,11.90176215]
[1770106739252,13.45794758,2318.8,2316.7,11.90176215]
[1770106739470,1.07819036,2318.7,2316.7,11.90176215]
[1770106739775,0.98929984,2318.8,2317.3,11.90176215]
[1770106739961,0.98929984,2318.8,2317.3,12.80576215]
[1770106740558,1.25463042,2319.4,2317.7,11.90176215]
[1770106740779,13.54646623,2319.5,2317.7,11.90176215]
[1770106741756,13.54646623,2319.5,2317.8,12.98037117]
[1770106742157,12.50747599,2319.4,2317.8,1.07860902]
[1770106742361,12.46864774,2319.4,2317.8,12.98037117]
[1770106742644,0.0008032,2319.6,2317.8,12.98037117]
[1770106742795,0.0008032,2319.6,2318.0,11.90176215]
[1770106743885,0.0008032,2319.6,2318.2,11.90176215]
[1770106744094,12.46945094,2319.6,2318.1,1.07846943]
[1770106745782,12.46945094,2319.6,2318.1,12.98023158]
[1770106746102,13.54725233,2319.6,2318.2,0.001]
[1770106746290,1.78582004,2319.5,2318.2,1.73051093]
[1770106746661,1.78692004,2319.5,2318.2,1.73051093]
[1770106747114,14.29439603,2319.5,2318.2,1.73051093]
[1770106747283,14.29439603,2319.5,2318.2,0.001]
[1770106747770,12.46864774,2319.2,2318.2,0.001]
[1770106748092,12.46864774,2319.0,2318.2,0.001]
[1770106749190,1.07795791,2319.2,2318.2,0.001]
[1770106749377,1.07794632,2319.3,2318.2,0.001]
[1770106749576,1.78581885,2319.2,2318.2,0.001]
[1770106750176,2.8637781,2319.2,2318.2,0.001]
[1770106750588,1.78581885,2319.2,2318.2,0.001]
[1770106754981,12.46864774,2319.4,2318.2,0.001]
[1770106755426,12.46864774,2319.4,2318.0,0.001]
[1770106755427,12.50747599,2319.1,2318.0,0.001]
[1770106755588,12.50747599,2318.7,2317.5,1.07871258]
[1770106755781,12.50747599,2318.5,2317.5,1.07874136]
[1770106756087,11.86672891,2318.6,2317.9,1.07856013]
[1770106756088,1.25463042,2318.6,2317.9,1.07856013]
[1770106756289,13.37264774,2318.9,2317.9,1.07856013]
[1770106756481,13.37264774,2318.9,2317.9,1.07854518]
[1770106756682,13.37264774,2318.9,2317.9,1.07856162]
[1770106757379,12.46864774,2318.8,2317.3,16.21711031]
[1770106757581,12.46864774,2318.8,2317.4,11.90176215]
[1770106757795,1.44507744,2318.7,2317.5,1.62171103]
[1770106759424,1.44507744,2318.7,2317.6,1.0787021]
[1770106759990,1.44507744,2318.7,2317.7,0.001]
[1770106762012,14.27907467,2319.1,2317.7,12.66590638]
[1770106762823,14.27907467,2319.1,2317.7,0.001]
[1770106769425,13.37507467,2319.1,2317.7,12.66590638]
[1770106769627,1.07901467,2319.3,2317.7,12.66590638]
[1770106769805,2.2247437,2319.3,2317.9,12.66490638]
[1770106770006,14.5218002,2319.3,2317.9,12.66490638]
[1770106771463,14.5218002,2319.3,2318.0,13.74342234]
[1770106771922,13.44388553,2319.3,2318.0,13.74342234]
[1770106772246,13.44388553,2319.3,2318.1,1.80574862]
[1770106772247,1.45217859,2319.2,2318.1,1.80574862]
[1770106773559,0.0011,2318.9,2318.2,1.07842291]
[1770106776725,12.2981565,2318.9,2318.2,1.07842291]
[1770106779265,0.0011,2318.9,2318.0,12.66490638]
[1770106779423,0.0011,2318.9,2317.9,4.31524469]
[1770106779424,0.0011,2319.3,2318.2,12.66490638]
[1770106780039,0.0011,2319.3,2318.2,13.56890638]
[1770106780658,13.37472376,2319.9,2318.2,13.56890638]
[1770106780659,10.29,2320.2,2319.3,12.66490638]
[1770106780882,19.1811,2320.5,2319.3,12.66490638]
[1770106780883,0.0011,2320.5,2319.4,1.26649064]
[1770106781149,0.0011,2320.5,2319.5,1.07781849]
[1770106781355,12.2981565,2320.5,2319.5,1.07781849]
[1770106782054,0.0011,2320.5,2319.5,1.07781849]
[1770106782226,0.0011,2320.5,2319.6,13.20381563]
[1770106783229,0.0011,2320.5,2319.7,13.74263194]
[1770106784763,0.0011,2320.5,2319.7,1.98172556]
[1770106785290,13.37551051,2320.5,2319.7,1.07772556]
[1770106785425,13.37551051,2320.5,2319.5,1.07779632]
[1770106785620,12.2970565,2320.3,2319.3,1.07788779]
[1770106785925,12.2970565,2320.3,2319.5,1.07780479]
[1770106787341,1.07749331,2320.2,2318.9,1.07809737]
[1770106787538,13.37563575,2320.3,2318.9,13.74300375]
[1770106787824,0.0011,2320.3,2318.9,13.74300375]
[1770106788023,0.24281563,2320.3,2319.1,12.66490638]
[1770106788431,13.61733203,2320.3,2319.0,1.8959552]
[1770106789538,13.61733203,2320.3,2319.1,1.07800439]
[1770106790726,14.52133203,2320.3,2319.1,1.07800439]
[1770106791128,12.50756117,2320.2,2319.0,1.0780154]
[1770106791339,12.90513269,2320.0,2319.0,1.0780154]
[1770106791730,12.90513269,2319.8,2318.9,4.31236809]
[1770106791934,12.90513269,2319.8,2318.9,1.07809737]
[1770106792357,16.42667693,2320.1,2318.9,1.07809737]
[1770106794074,16.42667693,2320.1,2318.8,16.16605367]
[1770106794237,1.73306769,2320.0,2318.9,2.04784432]
[1770106794762,14.63820038,2320.0,2318.9,2.04784432]
[1770106794967,14.63820038,2320.0,2318.8,1.07814386]
[1770106796438,13.98276534,2319.9,2318.7,4.31257941]
[1770106796945,13.98276534,2319.9,2318.6,4.31257547]
[1770106798537,13.98276534,2319.9,2318.4,16.16644759]
[1770106799666,13.98276534,2319.9,2319.0,0.001]
[1770106799969,14.90886905,2319.8,2319.0,0.001]
[1770106800568,1.07772556,2319.7,2319.0,0.001]
[1770106800759,13.80913269,2319.6,2318.4,4.31294746]
[1770106801366,12.90513269,2319.6,2318.5,11.85350013]
[1770106802553,12.90513269,2319.4,2318.2,1.07938818]
[1770106802754,12.90513269,2319.4,2318.0,0.001]
[1770106802755,12.90513269,2318.9,2318.0,0.001]
[1770106803074,12.90513269,2318.7,2318.0,0.001]
[1770106803778,0.904,2318.8,2318.0,1.07949648]
[1770106803960,13.80913269,2318.8,2318.0,0.001]
[1770106804168,14.28604596,2318.7,2318.0,0.001]
[1770106804779,1.07823686,2318.6,2318.0,0.001]
[1770106805874,12.90513269,2318.4,2317.2,1.07968771]
[1770106806181,12.94396094,2318.1,2317.0,0.001]
[1770106806393,12.90513269,2317.9,2317.0,0.001]
[1770106806680,12.90513269,2317.7,2317.0,0.001]
[1770106806839,12.90513269,2317.7,2316.5,0.001]
[1770106807438,0.904,2317.8,2316.5,11.85450013]
[1770106807668,0.904,2317.8,2316.6,1.29337285]
[1770106808444,1.29439609,2318.3,2316.7,11.85350013]
[1770106808642,0.48335493,2318.5,2316.9,11.85350013]
[1770106809042,15.36427096,2318.7,2317.1,11.85350013]
[1770106809043,1.38091327,2318.7,2317.1,11.85350013]
[1770106809278,1.29051327,2319.5,2317.3,11.85350013]
[1770106809279,13.98299765,2319.4,2317.3,11.85350013]
[1770106809493,14.88699765,2319.4,2317.3,11.85350013]
[1770106810891,14.88699765,2319.4,2317.5,11.85350013]
[1770106811047,14.88699765,2319.4,2317.5,12.75750013]
[1770106812077,1.29051327,2319.5,2317.7,11.85350013]
[1770106812268,1.07857846,2319.6,2317.9,11.85350013]
[1770106812469,0.000804,2319.6,2317.9,11.85350013]
[1770106812845,0.000804,2319.6,2318.1,11.85350013]
[1770106814475,0.0011,2319.2,2318.1,11.85350013]
[1770106815150,0.0011,2319.2,2318.2,1.07842291]
[1770106815350,0.0011,2319.2,2318.3,0.53921146]
[1770106815558,0.0011,2319.2,2318.3,12.39271159]
[1770106816188,0.0011,2319.2,2318.3,0.53921146]
[1770106816348,0.0011,2319.2,2318.2,1.07842291]
[1770106816349,12.90623269,2319.2,2318.2,1.07842291]
[1770106817346,12.90623269,2319.2,2318.0,4.31369165]
[1770106817347,1.07800439,2319.1,2318.0,4.31369165]
[1770106818172,1.07800439,2319.1,2317.9,1.07856249]
[1770106818173,13.98313708,2319.1,2317.9,1.07856249]
[1770106818380,14.73474011,2319.0,2317.8,1.07858156]
[1770106819069,1.07800439,2319.1,2317.8,1.07858156]
[1770106819070,0.0011,2319.2,2317.8,12.93208169]
[1770106819455,12.90623269,2319.2,2317.8,1.07858156]
[1770106821281,12.91277071,2319.1,2317.8,1.07858156]
[1770106821483,12.91277071,2318.9,2317.6,4.3144361]
[1770106821671,1.39908216,2318.8,2317.7,0.53931847]
[1770106822469,1.39908216,2318.8,2317.5,1.07874865]
[1770106822652,14.31185287,2318.8,2317.5,1.07874865]
[1770106823750,15.39002424,2318.8,2317.5,1.07874865]
[1770106824784,2.47725353,2318.8,2317.5,13.73905866]
[1770106824989,1.07817137,2318.8,2317.5,13.73905866]
[1770106825186,1.07805088,2319.0,2317.5,13.73905866]
[1770106825991,14.89480432,2319.1,2317.5,13.73905866]
[1770106827497,14.89480432,2319.1,2317.7,0.001]
[1770106827674,0.0011,2318.8,2317.7,0.001]
[1770106827997,1.29248707,2318.8,2317.7,0.001]
[1770106828289,13.99096107,2318.7,2317.7,0.001]
[1770106830474,5.60524853,2318.8,2317.7,12.66131001]
[1770106830475,1.29248707,2318.8,2317.7,12.66131001]
[1770106830794,0.0011,2318.8,2317.7,12.66131001]
[1770106832699,0.0011,2318.8,2317.8,1.07860902]
[1770106837504,0.0011,2318.8,2317.8,13.73891903]
[1770106840077,12.91387071,2318.8,2317.8,1.07860902]
[1770106840303,12.91277071,2318.6,2317.8,1.07860902]
[1770106841179,12.91277071,2318.6,2317.9,0.001]
[1770106841375,13.99213622,2318.6,2317.9,0.001]
[1770106841613,14.89613622,2318.6,2317.5,0.001]
[1770106841814,12.91277071,2318.4,2317.6,0.001]
[1770106842805,12.91277071,2318.4,2317.5,0.001]
[1770106843001,12.91277071,2318.4,2317.2,0.001]
[1770106843201,12.91277071,2318.4,2317.2,1.07988589]
[1770106843383,12.91277071,2318.2,2317.2,0.001]
[1770106843580,14.31188542,2318.1,2317.2,0.001]
[1770106848226,13.99128667,2318.0,2317.2,0.001]
[1770106848815,14.89528667,2318.0,2317.2,0.001]
[1770106849016,7.82911471,2318.1,2317.2,0.001]
[1770106849318,0.98115661,2318.0,2317.2,0.001]
[1770106851522,14.60049246,2318.0,2317.2,0.001]
[1770106852124,13.52197329,2318.0,2317.2,0.001]
[1770106852299,0.98115661,2318.0,2317.2,12.21257193]
[1770106852505,2.0596757,2318.0,2317.2,0.001]
[1770106852704,1.42027179,2317.9,2317.2,0.001]
[1770106853531,14.43765705,2317.9,2317.2,0.001]
[1770106854125,14.43765705,2317.9,2316.7,0.001]
[1770106854430,11.9388173,2317.8,2316.9,1.07900895]
[1770106855131,13.01745858,2317.8,2317.4,0.001]
[1770106855330,2.51820006,2317.7,2317.4,0.001]
[1770106856617,3.42220006,2317.7,2317.4,0.001]
[1770106857711,1.0787021,2317.6,2317.4,0.001]
[1770106858130,13.0175194,2317.6,2316.7,0.001]
[1770106858434,11.9388173,2317.4,2316.7,0.001]
[1770106859712,1.0787952,2317.4,2316.7,0.001]
[1770106859912,1.07874351,2317.6,2316.7,0.001]
[1770106860137,14.45701736,2317.7,2316.7,0.001]
[1770106860433,2.51820006,2317.7,2316.7,12.21257193]
[1770106860639,0.0011,2317.8,2316.8,1.22125719]
[1770106860856,0.0011,2317.8,2316.8,13.43282912]
[1770106861750,11.9399173,2317.8,2316.8,5.53739244]
[1770106861910,0.1024,2317.5,2316.5,0.001]
[1770106862236,0.904,2317.7,2316.3,1.08010382]
[1770106862237,11.9388173,2317.2,2316.3,1.08010382]
[1770106862550,12.8428173,2317.1,2316.3,0.0008016]
[1770106863238,0.904,2317.1,2316.5,1.07920264]
[1770106863940,1.98294408,2317.1,2316.4,1.07922794]
[1770106864172,0.904,2317.1,2316.4,1.07922794]
[1770106864822,1.9829529,2317.1,2316.4,1.07922794]
[1770106865021,1.53384263,2317.1,2316.4,1.07922794]
[1770106866424,13.01857286,2317.8,2316.4,12.21157193]
[1770106866629,1.98265556,2317.7,2316.4,12.21157193]
[1770106867043,13.92147286,2317.7,2316.4,12.21157193]
[1770106868047,13.92147286,2317.7,2316.6,0.001]
[1770106868251,1.39225729,2317.6,2316.6,0.001]
[1770106868450,0.904,2317.7,2316.6,12.21257193]
[1770106870151,0.0011,2317.8,2316.6,12.21257193]
[1770106871159,0.0011,2317.8,2316.8,12.21157193]
[1770106872072,0.0011,2318.0,2316.9,12.21157193]
[1770106872272,0.0011,2318.0,2317.1,12.21157193]
[1770106873285,0.0011,2318.6,2317.4,12.21157193]
[1770106875145,0.0011,2318.6,2317.6,12.21157193]
[1770106875653,0.0011,2318.8,2317.7,13.11557193]
[1770106875863,0.0011,2318.8,2317.9,12.21157193]
[1770106879173,0.0011,2318.8,2318.0,1.07851596]
[1770106879369,0.0011,2318.8,2318.0,13.29008789]
[1770106879974,0.0011,2319.0,2318.1,12.21157193]
[1770106880179,0.0011,2318.6,2318.1,12.21157193]
[1770106880347,0.0011,2318.6,2318.2,1.32900879]
[1770106880550,0.0011,2318.8,2318.2,1.32900879]
[1770106882385,0.0011,2318.8,2318.3,1.07837639]
[1770106883874,0.0011,2319.0,2318.4,12.45744886]
[1770106884381,0.0011,2319.0,2318.5,1.07828337]
[1770106884572,0.0011,2319.0,2318.6,0.53914169]
[1770106885146,0.0011,2319.2,2318.6,0.53914169]
[1770106886157,0.0011,2319.2,2318.6,12.99659055]
[1770106886357,0.0011,2319.2,2318.7,1.07819036]
[1770106888464,0.0011,2319.4,2318.7,13.53563922]
[1770106888668,0.0011,2319.4,2318.8,1.83875424]
[1770106889268,0.0011,2319.4,2318.8,14.2962031]
[1770106890585,0.0011,2319.4,2318.9,1.07809737]
[1770106890787,0.000804,2319.6,2318.9,13.53554623]
[1770106891863,0.000804,2319.6,2319.0,0.904]
[1770106892097,0.0011,2319.2,2319.1,1.44395462]
[1770106892406,0.0011,2320.0,2319.1,1.44395462]
[1770106892701,0.0011,2319.4,2319.2,1.07795791]
[1770106892992,0.0011,2320.0,2319.1,5.75578628]
[1770106892993,12.23614536,2320.0,2319.1,2.52192435]
[1770106893192,12.23614536,2320.0,2318.7,4.3127001]
[1770106893394,12.23614536,2320.0,2318.9,1.07807773]
[1770106893590,12.23614536,2320.0,2318.7,4.3127001]
[1770106893893,12.89101005,2319.9,2318.5,1.0782516]
[1770106894097,12.23504536,2319.8,2318.6,1.07823312]
[1770106894289,12.23504536,2319.6,2318.5,1.07825096]
[1770106894510,12.23504536,2319.4,2318.4,0.001]
[1770106894670,12.23504536,2319.2,2318.4,0.001]
[1770106895669,12.23504536,2319.2,2318.1,0.001]
[1770106896798,13.31304975,2319.1,2318.1,0.001]
[1770106897092,12.23504536,2318.9,2318.1,0.001]
[1770106899394,13.31316128,2318.9,2318.1,0.001]
[1770106899901,12.23504536,2318.9,2318.1,0.001]
[1770106900398,2.840584,2319.0,2318.1,0.001]
[1770106900399,1.76250163,2319.0,2318.1,0.001]
[1770106901303,10.74145986,2319.8,2318.1,12.45844886]
[1770106901504,12.23614536,2320.0,2318.3,12.45744886]
[1770106901673,13.31374425,2320.0,2318.3,12.45744886]
[1770106902281,12.23614536,2320.0,2318.3,12.45744886]
[1770106902598,13.14014536,2320.0,2318.3,12.45744886]
[1770106902806,14.99291822,2320.0,2318.5,12.45744886]
[1770106904809,0.0011,2320.0,2318.7,12.45744886]
[1770106905588,0.0011,2318.9,2318.7,12.45744886]
[1770106905911,12.23614536,2320.0,2318.7,12.45744886]
[1770106906290,0.0011,2320.0,2318.7,12.45744886]
[1770106906806,0.0011,2320.0,2318.8,1.07814386]
[1770106907002,0.0011,2320.0,2318.9,14.24226568]
[1770106907204,12.23614536,2320.0,2318.9,14.24226568]
[1770106907803,0.0011,2320.0,2318.9,14.24226568]
[1770106908812,0.0011,2320.0,2319.1,12.45744886]
[1770106909218,0.0011,2320.0,2319.0,1.07805088]
[1770106909427,1.22482454,2320.0,2319.1,0.71750712]
[1770106910023,0.0011,2320.0,2319.1,0.71750712]
[1770106910222,12.92694149,2320.0,2319.1,0.71750712]
[1770106910991,14.00456289,2320.0,2319.2,1.07795791]
[1770106911188,14.00456289,2320.0,2319.1,1.07798609]
[1770106912816,12.92694149,2320.0,2319.1,1.07798609]
[1770106913016,0.0011,2320.0,2319.3,1.07791143]
[1770106919009,0.0011,2320.0,2319.3,1.07891143]
[1770106919329,0.0011,2319.8,2319.3,1.07891143]
[1770106920126,0.0011,2320.0,2319.4,12.11998961]
[1770106920330,0.0008024,2320.7,2319.4,12.11998961]
[1770106920516,0.0011,2321.0,2319.5,1.4102901]
[1770106920718,10.29,2321.3,2319.6,1.07777202]
[1770106921027,13.88010554,2321.4,2319.6,1.07777202]
[1770106921231,12.80316553,2321.4,2319.6,1.07777202]
[1770106921440,1.28031655,2321.3,2319.7,0.67991502]
[1770106921902,12.47673306,2321.3,2319.7,0.67991502]
[1770106922801,12.47673306,2321.3,2319.8,13.19766872]
[1770106923899,12.47673306,2321.3,2319.8,1.07767911]
[1770106923900,13.55372369,2321.3,2319.8,1.07767911]
[1770106925738,12.47673306,2321.1,2319.8,1.07767911]
[1770106926433,13.37973306,2321.0,2319.8,1.07767911]
[1770106926607,1.33797331,2320.9,2319.9,0.53883956]
[1770106926814,1.33797331,2320.9,2320.0,1.0775862]
[1770106927741,1.33797331,2320.9,2320.1,12.11998961]
[1770106927922,0.32643247,2321.4,2320.1,12.11998961]
[1770106928645,0.32643247,2321.4,2320.1,13.02298961]
[1770106928844,0.0008032,2321.4,2320.3,12.11998961]
[1770106929342,0.0023149,2321.8,2320.4,12.35355991]
[1770106929642,0.0023149,2321.8,2320.6,12.11998961]
[1770106931044,0.0023149,2321.8,2320.7,1.07726117]
[1770106931542,0.0023149,2321.8,2320.7,13.19725078]
[1770106932117,0.0011,2321.6,2320.7,13.19725078]
[1770106934519,0.0011,2321.6,2320.7,1.07726117]
[1770106934719,0.0011,2321.6,2320.8,0.53863059]
[1770106935227,12.47783306,2321.6,2320.3,1.0774209]
[1770106936160,12.47783306,2321.6,2320.4,1.07739655]
[1770106937251,12.47673306,2321.4,2320.2,0.001]
[1770106939367,1.07696591,2321.4,2320.2,12.12098961]
[1770106939529,13.55369897,2321.4,2320.2,12.12098961]
[1770106939730,1.87643183,2321.3,2320.3,1.21209896]
[1770106940060,14.35316489,2321.3,2320.3,1.21209896]
[1770106940363,14.35316489,2321.3,2320.2,0.001]
[1770106941165,1.87643183,2321.3,2320.2,0.001]
[1770106941465,12.83731868,2321.5,2320.2,11.71553062]
[1770106943345,0.1024,2321.4,2320.2,0.001]
[1770106943545,11.79922496,2321.3,2320.2,0.001]
[1770106943745,11.76039671,2321.3,2320.2,0.001]
[1770106943939,1.17603967,2321.2,2320.2,0.001]
[1770106944667,1.17603967,2321.2,2320.4,0.001]
[1770106945465,2.25307232,2321.2,2320.4,0.001]
[1770106946759,1.17603967,2321.2,2320.4,0.001]
[1770106946956,1.07808474,2321.3,2320.4,0.001]
[1770106948063,0.0011,2321.3,2320.4,0.001]
[1770106950753,0.0011,2321.3,2320.4,11.71553062]
[1770106951567,0.0011,2321.3,2320.4,0.001]
[1770106952171,0.0011,2321.3,2320.4,1.07840044]
[1770106952371,0.0011,2321.3,2320.5,1.80055329]
[1770106953358,0.0011,2321.3,2320.6,11.71453062]
[1770106954886,0.0011,2321.3,2320.7,1.07726117]
[1770106958695,0.0011,2321.6,2320.8,11.71453062]
[1770106959267,0.0011,2321.3,2320.8,11.71453062]
[1770106959471,0.0011,2321.3,2320.9,1.17145306]
[1770106960685,0.0011,2321.3,2321.0,1.07712193]
[1770106963069,11.76149671,2321.3,2320.5,1.80055329]
[1770106963273,11.76149671,2321.3,2320.6,1.07729909]
[1770106963472,11.76149671,2321.3,2320.4,0.001]
[1770106963680,11.76149671,2321.3,2320.6,1.07730577]
[1770106963977,11.76149671,2321.3,2320.5,1.07731874]
[1770106965277,12.83742583,2321.2,2320.4,0.001]
[1770106965477,1.71466423,2321.1,2320.4,0.001]
[1770106965999,0.0011,2321.3,2320.4,0.001]
[1770106966600,1.078083,2321.3,2320.4,0.001]
[1770106967677,0.0011,2321.3,2320.4,11.71553062]
[1770106968112,11.76149671,2321.3,2320.4,0.001]
[1770106968600,0.0011,2321.3,2320.4,0.001]
[1770106968805,0.0011,2321.3,2320.2,4.31078752]
[1770106968806,11.76039671,2321.2,2320.2,0.001]
[1770106968981,11.76039671,2321.0,2320.0,0.001]
[1770106969183,11.76039671,2320.8,2319.9,1.07761669]
[1770106969483,11.76039671,2320.8,2319.7,4.31075906]
[1770106969484,11.76039671,2320.8,2319.8,1.07764707]
[1770106969684,12.8377043,2320.6,2319.4,4.31141368]
[1770106972414,12.8377043,2320.6,2319.4,17.09334814]
[1770106972782,12.8377043,2320.6,2319.6,0.001]
[1770106976500,12.8377043,2320.6,2319.4,1.07886496]
[1770106978688,13.7407043,2320.6,2319.4,1.07886496]
[1770106978907,13.7407043,2320.6,2319.4,0.001]
[1770106978908,12.44994405,2320.4,2319.4,0.001]
[1770106979188,6.43,2320.4,2319.4,0.001]
[1770106980810,6.43,2320.4,2319.4,12.78293446]
[1770106981010,7.50740442,2320.4,2319.4,12.78293446]
[1770106981901,12.44994405,2320.3,2319.4,0.001]
[1770106982101,1.99573485,2320.2,2319.4,0.001]
[1770106982690,14.4456789,2320.2,2319.4,0.001]
[1770106982914,12.44994405,2319.8,2319.0,0.001804]
[1770106985407,1.07772556,2319.7,2319.0,0.001804]
[1770106985716,1.78384613,2319.6,2319.0,0.001804]
[1770106985922,14.23379018,2319.6,2319.0,0.001804]
[1770106986109,12.44994405,2318.9,2318.1,0.001]
[1770106986286,12.44994405,2318.9,2318.0,1.07950803]
[1770106986490,14.13121031,2318.8,2318.0,1.07950803]
[1770106986693,14.13121031,2318.8,2318.0,0.001]
[1770106986887,1.68126626,2318.8,2318.2,1.0783819]
[1770106987112,0.903,2319.0,2318.0,0.001]
[1770106987314,0.903,2319.0,2318.1,1.07846064]
[1770106987825,1.07809737,2318.9,2318.0,0.001]
[1770106992319,12.44994405,2318.8,2317.7,1.07865556]
[1770106992908,1.07809737,2318.9,2317.7,13.86059002]
[1770106993108,5.21526379,2319.0,2317.9,12.78193446]
[1770106993109,0.62933612,2318.8,2317.9,12.78193446]
[1770106993307,1.9810873,2319.0,2317.9,12.78193446]
[1770106996502,9.65108055,2319.4,2318.1,12.78193446]
[1770106996503,7.5079163,2319.3,2318.1,12.78193446]
[1770106996707,19.95786035,2319.3,2318.1,12.78193446]
[1770106996941,12.44994405,2319.2,2318.1,12.78193446]
[1770106998219,12.44994405,2319.2,2318.1,12.78293446]
[1770106998540,0.0011,2318.8,2318.3,1.07837639]
[1770106999944,0.0011,2319.0,2318.3,13.86031085]
[1770107000150,1.78384613,2319.6,2318.3,13.86031085]
[1770107004141,15.78946267,2319.6,2318.3,13.86031085]
[1770107006457,14.71168288,2319.6,2318.3,13.86031085]
[1770107006660,14.71168288,2319.6,2318.5,12.95101088]
[1770107006860,14.71168288,2319.6,2318.5,13.85501088]
[1770107007859,7.74789099,2319.9,2318.7,12.95101088]
[1770107008062,0.0011,2320.4,2318.7,13.18458118]
[1770107009243,14.00634081,2320.4,2318.7,13.18458118]
[1770107009759,12.92893675,2320.4,2318.7,13.18458118]
[1770107009963,12.92893675,2320.4,2318.9,14.02910825]
[1770107011662,0.0011,2320.2,2318.9,14.02910825]
[1770107015071,0.0011,2320.2,2319.0,13.18458118]
[1770107015272,0.0011,2320.6,2319.5,12.95101088]
[1770107015477,0.0011,2320.6,2319.6,12.95101088]
[1770107015679,0.0011,2320.6,2319.8,12.95101088]
[1770107015878,0.0011,2320.6,2319.9,13.85501088]
[1770107016971,0.0011,2320.6,2320.0,1.0775862]
[1770107017171,12.92893675,2320.6,2320.0,1.0775862]
[1770107019746,12.92783675,2320.6,2320.0,1.0775862]
[1770107020081,1.292864,2320.6,2319.8,1.07767911]
[1770107020282,0.0008032,2320.7,2319.8,1.07767911]
[1770107020853,0.0008032,2320.7,2319.8,14.02868999]
[1770107021576,0.0011,2321.1,2319.9,12.95101088]
[1770107021747,1.07817621,2321.1,2319.9,12.95101088]
[1770107023348,1.07817621,2321.1,2320.0,1.0775862]
[1770107023552,2.0436013,2321.0,2320.1,1.83389419]
[1770107023754,0.0011,2321.1,2320.1,14.78490507]
[1770107024579,0.0011,2320.5,2320.1,14.78490507]
[1770107024781,0.0011,2321.3,2320.2,12.95101088]
[1770107025080,0.0011,2321.6,2320.5,12.95101088]
[1770107025378,0.0011,2321.6,2320.7,12.95101088]
[1770107028083,0.0011,2321.6,2320.9,12.95101088]
[1770107028284,0.0011,2321.6,2321.0,13.85401088]
[1770107029195,0.0011,2321.6,2321.0,0.903]
[1770107030688,0.0011,2321.6,2320.8,1.07721475]
[1770107030882,0.0011,2321.6,2320.9,0.53860738]
[1770107033199,0.0011,2321.6,2321.0,13.92413185]
[1770107034586,0.0011,2321.6,2321.0,1.07712193]
[1770107034784,0.0011,2321.6,2321.0,13.92413185]
[1770107035274,0.0011,2321.7,2321.0,13.92413185]
[1770107035275,0.0011,2321.7,2321.1,12.84700992]
[1770107035474,0.0011,2321.7,2321.2,14.23942311]
[1770107036286,0.0008024,2322.1,2321.2,14.23942311]
[1770107037361,0.0011,2321.5,2321.3,1.07698272]
[1770107037581,0.0008024,2322.1,2321.3,1.07698272]
[1770107037582,0.0008024,2322.1,2321.4,0.903]
[1770107038096,0.0011,2321.7,2321.4,0.903]
[1770107039399,0.0011,2321.7,2321.4,1.67103268]
[1770107039895,0.0011,2321.7,2321.4,2.74795116]
[1770107040795,0.0011,2321.7,2321.4,1.67103268]
[1770107040980,0.0011,2321.7,2321.4,1.97993035]
[1770107043673,0.0008024,2322.1,2321.4,1.97993035]
[1770107044693,12.54696676,2322.1,2321.4,1.97993035]
[1770107045080,0.0008024,2322.1,2321.4,1.97993035]
[1770107045278,0.0008024,2322.1,2321.4,14.82694027]
[1770107045480,0.0008024,2322.1,2321.5,1.91348369]
[1770107045998,0.0008024,2322.1,2321.6,1.07684355]
[1770107046202,0.0011,2322.7,2321.6,13.92385347]
[1770107047586,0.0011,2322.7,2321.8,12.84700992]
[1770107047899,0.0011,2322.7,2322.1,1.07661168]
[1770107048117,12.54616436,2323.5,2322.2,13.75000992]
[1770107048298,0.000804,2323.6,2322.2,13.75000992]
[1770107048602,12.54696836,2323.6,2322.2,13.75000992]
[1770107049303,0.000804,2323.6,2322.2,13.75000992]
[1770107049502,0.000804,2323.6,2322.4,12.84700992]
[1770107050200,0.000804,2323.6,2322.6,12.84700992]
[1770107051509,12.54696836,2323.6,2322.5,13.92343618]
[1770107051675,0.0011,2322.7,2322.5,13.92343618]
[1770107051875,0.000804,2323.6,2322.6,12.84700992]
[1770107052092,0.000804,2323.6,2322.7,14.23935354]
[1770107052293,0.000804,2323.6,2322.9,12.84700992]
[1770107052701,0.000808,2324.3,2323.1,12.84700992]
[1770107054181,0.000808,2324.3,2323.2,13.92311184]
[1770107055100,0.000808,2324.3,2323.3,0.902]
[1770107055294,0.000808,2324.3,2323.4,1.48251118]
[1770107055476,0.000808,2324.3,2323.4,14.3295211]
[1770107056476,0.000808,2324.3,2323.5,13.9229729]
[1770107057180,0.0008088,2325.0,2323.6,12.84700992]
[1770107057786,0.0008088,2325.0,2323.8,12.84700992]
[1770107057985,0.0008088,2325.0,2324.0,12.84700992]
[1770107058705,0.0008088,2325.0,2324.1,1.07568521]
[1770107059282,0.0008088,2325.0,2324.0,1.07571784]
[1770107059283,12.54697316,2325.0,2324.0,1.07571784]